{"text_format":"1","workbook":"xlsx","n_sheets":9,"sheets":["Hoja1","Formulario","Focalización","Formulario JeA","Mapa oferta","Control_info","Guía de oferta","Guia","Guia JeA"],"not_rendered":{"charts":0,"images":2,"macros":1,"external_links":0,"defined_names":72,"comments":0,"pivot_tables":2},"unopened":[],"bounds":{"document_bytes":16777216,"sheet_cells":100000,"rows_first":2000,"rows_last":500,"rows_between":2000,"halvings":0,"cell_chars":16384,"cell_head_chars":4096},"cells_cut":0,"cells_raw":0,"read":"whole","date_system":"1900"}

{"sheet":"Hoja1","index":0,"n_rows":38,"n_cols":29,"rows_kept":38,"cut":false,"hidden":true,"merged":[[9,9,9,10],[3,11,3,14],[7,9,7,10],[8,9,8,10],[2,15,2,18],[2,20,2,22],[1,15,1,18],[1,20,1,22],[1,9,1,14],[2,9,2,14]]}
[null,null,null," Información básica del programa"]
["Entidad","Clasificación","Entidad aliada u operador","Nombre del programa","Descripción","Acceso","Modalidad","Beneficios/Incentivos ","DIMENSIONES","Orden y cobertura geográfica",null,null,null,null,null,"Estado de la oferta",null,null,null,"Contrapartida","Descripcion contrapartida",null,null,"Requisitos","Criterios de focalización","Contacto de la entidad","Página web de la entidad y del programa","Cupos disponiblres","Observación"]
["Nombre de la entidad","Público","Nombre de la entidad","Corresponde al nombre oficial del programa que se está ofertando.","Permite conocer especificaciones generales del programa como objetivos, estructura (fases), actividades previstas y habilidades a desarrolar por los grupos poblacionales a los que va dirigido el servicio",null,null,"Hace referencia a los beneficio que reciben los participantes del programa (selección categoria y su respectivs desrcipción)","Componentes a través de los cuales se fortalecerán a las familias vinculadas a la modalidad Mi Familia mediante la identificación de iniciativas sociales públicas, privadas y espacios de participación territorial. Estas son: salud, educación y capacitación, habitabilidad, identificación, ingresos, trabajo y uso del tiempo libre. ","área geográfica cubierta por las acciones del programa",null,null,null,null,null,"Establece las fechas en las que el programa o servicio se encuentra activo y en este sentido en que momento se puede ingresar a este",null,null,null,"Hace referencia a las acciones que deberán cumplir los participantes para continuar accediendo al beneficio. ","Indica si un programa es gratuito o si el beneficiario debe realizar algún tipo de pago, por este motivo se solicita el detalle por medio de la siguiente información",null,null,"Que debo cumplir","Por qué priorizan","Responsable nacional, regional y municipal del servicio o programa",null,"Gestionados"]
[null,"Privado",null,null,null,"Demanda","virtual","Especie","SALUD","Departamento","Municipio","Subdivisión",null,null,null,"Estado de la oferta","Número de apertura en el año","Fecha de inicio","Fecha de finalización","Tiempo","Cuánto:","Cada cuanto: ","Donde"]
[null,"Mixta",null,null,null,"Convocatoria abierta","presencial","Efectivo","EDUCACIÓN Y CAPACITACIÓN",null,null,"Barrio","Comunidad","Consejo comunitario","Vereda",null,"permanente o mensual","Fecha de inicio del programa","Indica la fecha de finalización del programa","Dinero","Dato donde se especifica el valor o porcentaje que debe pagar el beneficiario para acceder al programa","Temporalidad del pago que se debe realizar","Información del lugar donde se realizan los pagos requeridos",null,null,"Nombre, telefono y correo electronico",null,"Numero"]
[null,"Cooperación",null,null,null,"Convocatoria cerrada","virtual y presencial","Especie y efectivo","HABITABILIDAD ","Nombre","Nombre","Lista de Nombres (descriptivo)","Lista de Nombres (descriptivo)","Lista de Nombres (descriptivo)",null,"Activo",1,null,null,"Otros","Descriptivo","Descriptivo","Descriptivo","Edad","Edad",null,null,"Demanda"]
[null,"No identificada",null,null,null,null,"Semipresencial","Ninguno","PREVENCIÓN",null,null,null,null,null,null,"Inactivo",2,"Cantidad de entradas por opción de periodicidad (max 12)","Cantidad de entradas por opción de periodicidad (max 12)","Ninguno",null,null,null,"Puntaje SISBEN","Puntaje SISBEN"]
[null,null,null,null,null,null,"Otras",null,"INGRESOS Y TRABAJO",null,null,null,null,null,null,null,3,null,null,null,null,null,null,"Nivel Escolaridad","Nivel Escolaridad"]
[null,null,null,null,null,null,null,null,"USO DEL TIEMPO LIBRE ",null,null,null,null,null,null,null,4,null,null,null,null,null,null,"Género","Género"]
[null,null,null,null,null,null,null,null,"Unir otra base de oferta desagregada",null,null,null,null,null,null,null,5,null,null,null,null,null,null,"Víctimas","Víctimas (desplazados, otras víctimas)"]
[null,null,null,null,null,null,null,null,null,null,null,null,null,null,null,null,6,null,null,null,null,null,null,"Reincorporados","Reincorporados"]
[null,null,null,null,null,null,null,null,null,null,null,null,null,null,null,null,7,null,null,null,null,null,null,"Puble étnicos","Puble étnicos (afros, indigenas, RROM, ETC)"]
[null,null,null,null,null,null,null,null,null,null,null,null,null,null,null,null,8,null,null,null,null,null,null,"Otros abiertos","Unidos"]
[null,null,null,null,null,null,null,null,null,null,null,null,null,null,null,null,9,null,null,null,null,null,null,null,"ICBF"]
[null,null,null,null,null,null,null,null,null,null,null,null,null,null,null,null,10,null,null,null,null,null,null,null,"Otros"]
[null,null,null,null,null,null,null,null,null,null,null,null,null,null,null,null,11]
[null,null,null,null,null,null,null,null,null,null,null,null,null,null,null,null,12]
[null,null,null,null,null,null,null,null,null,null,null,null,null,null,null,null,"No aplica"]
["Prosperidad Social","Pública","SENA","Jóvenes en Acción",null,"Convocatoria abierta","Presencial","Efectivo","EDUCACIÓN Y CAPACITACIÓN","Antioquia","Medellín","Todos","Todos","Todos","Todos","Activo",4,"2020-01-15","2020-03-15","Tiempo",null,null,"Edad","16 a 24","No aplica","Julian","www.prosperidadsocial.gov.co"]
[null,null,null,null,null,null,null,null,null,null,null,null,null,null,null,null,null,"2020-03-15","2020-06-15",null,null,null,"Puntaje SISBEN","No aplica","0 a 54,86"]
["EDUCACIÓN_Y_CAPACITACIÓN","HABITABILIDAD","SALUD","INGRESOS_Y_TRABAJO","USO_DEL_TIEMPO_LIBRE","OTROS",null,null,null,null,null,null,null,null,null,null,null,"2020-06-15","2020-09-15",null,null,null,"Nivel Escolaridad","Bachiller","No aplica"]
[null,null,null,null,null,null,null,null,null,null,null,null,null,null,null,null,null,"2020-09-15","2020-12-15",null,null,null,"Género","No aplica","No aplica"]
[null,null,null,null,null,null,null,null,null,null,null,null,null,null,null,null,null,null,null,null,null,null,"Víctimas","No aplica","Si"]
["Educación_y_Capacitación_","Orientación_Socio_ocupacional","Taller_de_hoja_de_vida","Herramientas_digítales","Alfabetización","Otra",null,null,null,null,null,null,null,null,null,null,null,null,null,null,null,null,"Reincorporados","No aplica","No aplica"]
["Educación_y_Capacitación_","Habilidades_Blandas","Manejo_de_emociones","Trabajo_en_equipo","Comunicación_asertiva_","Resolución_de_conflictos","Pensamiento_crítico_","Creatividad","Dos_o_más_de_estas_habilidades","Otras_habilidades",null,null,null,null,null,null,null,null,null,null,null,null,"Pueblo étnicos","No aplica","Afros o indígenas"]
["Educación_y_Capacitación_","Educación_Básica_y_Media","Acceso_a_cupos_de_educación","Trabajo_infantil","Nivelación_en_Matemáticas_","Nivelación_en_Español","Bilingüismo","Apoyo_económicos_para_la_permanencia","Transporte_escolar","Alimentación_escolar","Varios_de_estos_servicios","Otros",null,null,null,null,null,null,null,null,null,null,"Otros abiertos","No aplica","Unidos, ICBf"]
["Educación_y_Capacitación_","Educación_Orientada_al_Trabajo","Técnico_profesional","Tecnólogo","Profesional_universitario","Técnico\n","Técnico__laboral\n","Cursos_cortos_o_Complementarios","Apoyo_en_espacie_","Otros"]
["HABITABILIDAD_","Mejoramiento_de_condiciones_habitacionales","Entrega_de_materiales","Entrega_de_dinero","Realización_de_mejoramientos","Varias_de_la_opciones_anteriores","Otras"]
["HABITABILIDAD_","Construcción_de_vivienda","Subsidio_para_la_compra","Subsidio_para_el_arriendo","Entrega_de_vivienda","Titulación_de_la_vivienda","Condonación_de_créditos","Otras"]
["SALUD","Niños_niñas_y_adolescentes","Aseguramiento","Vacunación,_tamizaje_y/o_nutrición","Crecimiento_y_desarrollo","Acompañamiento_Psicosocial","Manejo_de_Sustancias_Psico_Activas_","Embarazo_adolescente","Otras"]
["SALUD","Adultos","Aseguramiento","Educación_alimentaria","Acompañamiento_Psicosocial","Violencia_intrafamiliar","Manejo_de_Sustancias_Psico_Activas_","Apoyo_y/o_productos_para_discapacidad","Otras"]
["INGRESOS_Y_TRABAJO","Intermediación_Laboral","Caracterización","Direccionamientos_Centros_de_Empleo","Remisión_a_Procesos_de_selección","Validación_de_competencias","Acompañamiento_post_vinculación_","Apoyo_en_espacie_","Otras"]
["INGRESOS_Y_TRABAJO","Autoempleo","Caracterización","Capital_semilla","Asistencia_técnica_o_extensionismo","Acceso_a_crédito","Certificaciones_y_cumplimientos_legales","Estrategias_de_mercadeo_y/o_comunicaciones","Varias_de_la_opciones_anteriores","Otras"]
["USO_DEL_TIEMPO_LIBRE_","Niños_niñas_y_adolescentes_","Actividades_deportivas_","Actividades_Culturales_","Actividades_Sociales","Apoyo_en_espacie_","Varias_de_la_opciones_anteriores","Otras"]
["USO_DEL_TIEMPO_LIBRE_","Adultos_","Actividades_deportivas_","Actividades_Culturales_","Actividades_Sociales","Apoyo_en_espacie_","Varias_de_la_opciones_anteriores","Otras"]
["OTROS","Identificación","Documentos_de_identificación","Tarjeta_militar","Otros"]
["OTROS","Jusiticia","Acceso_a_justicia","Mecanismos_de_concilianción","Otros"]
["OTROS","Otros_","Otros"]

{"sheet":"Formulario","index":1,"n_rows":67,"n_cols":163,"rows_kept":67,"cut":false,"hidden":false,"merged":[[65,22,65,23],[66,22,66,23],[61,4,66,9],[2,31,2,33],[2,3,2,30],[61,18,61,21],[61,22,61,23],[62,22,62,23],[63,22,63,23],[64,22,64,23],[62,18,62,21],[63,18,63,21],[64,18,64,21],[65,18,65,21],[66,18,66,21],[62,10,62,13],[63,10,63,13],[64,10,64,13],[65,10,65,13],[66,10,66,13],[62,14,62,15],[63,14,63,15],[64,14,64,15],[65,14,65,15],[66,14,66,15],[55,4,59,9],[61,10,61,13],[61,14,61,15],[56,26,56,27],[56,28,56,32],[57,26,57,27],[57,28,57,32],[58,26,58,27],[58,28,58,32],[59,26,59,27],[59,28,59,32],[56,22,56,25],[57,22,57,25],[58,22,58,25],[59,22,59,25],[56,16,56,20],[57,16,57,20],[58,16,58,20],[59,16,59,20],[55,14,55,15],[55,16,55,20],[56,14,56,15],[57,14,57,15],[58,14,58,15],[59,14,59,15],[55,10,55,13],[56,10,56,13],[57,10,57,13],[58,10,58,13],[59,10,59,13],[55,22,55,25],[55,26,55,27],[55,28,55,32],[36,12,36,32],[21,12,21,32],[22,12,22,32],[23,12,23,32],[24,12,24,32],[25,12,25,32],[27,12,27,32],[17,5,20,11],[39,12,39,14],[40,12,40,14],[38,12,38,32],[41,12,41,14],[39,15,39,17],[39,18,39,20],[39,21,39,23],[39,24,39,26],[39,27,39,29],[39,30,39,32],[40,15,40,17],[40,18,40,20],[40,21,40,23],[40,24,40,26],[40,27,40,29],[3,3,5,33],[30,12,30,32],[35,12,35,32],[16,12,16,32],[17,12,20,32],[9,13,9,32],[10,13,10,32],[11,13,11,32],[26,12,26,32],[28,12,28,32],[29,12,29,32],[40,30,40,32],[41,15,41,17],[41,18,41,20],[41,21,41,23],[41,24,41,26],[41,27,41,29],[41,30,41,32],[43,12,43,14],[43,15,43,17],[43,18,43,20],[43,21,43,23],[43,24,43,26],[53,15,53,32],[44,12,44,14],[44,15,44,17],[44,18,44,20],[44,21,44,23],[44,24,44,26],[51,15,51,32],[52,15,52,32],[45,12,45,14],[45,15,45,17],[45,18,45,20],[45,21,45,23],[45,24,45,26],[47,12,47,32]]}
[]
[]
[null,null,null,"FORMULARIO DE MAPEO DE OFERTA PARA MI FAMILIA",null,null,null,null,null,null,null,null,null,null,null,null,null,null,null,null,null,null,null,null,null,null,null,null,null,null,null,null,null,null,null,null,null,null,null,null,null,null,null,null,null,null,null,null,null,null,null,null,null,null,null,null,null,null,null,null,null,null,1,1,1,1,1,1,1,1,1,1,1,1,1,1,1,1,1,1,1,1,1,1,1,1,1,1,1,1,1,1,1,1,1,1,1,1,1,1,1,1,1,1,1,1,1,1,1,1,1,1,1,1,1,1,1,1,1,1,1,1,1,1,1,1,1,1,1,1,1,1,1,1,1,1,1,1,1,1,1,1,1,1,1,1,1,1,1,1,1,1,1,1,1,1,1,1,1,1,1,1,1]
[null,null,null,"La presente herramienta permite identificar la oferta disponible para adelantar acciones para la convergencia de oferta y gestión de redes"]
[]
[]
[]
[]
[]
[null,null,null,null,null,null,null,null,null,null,null,null,"Nombre entidad"]
[null,null,null,null,null,null,null,null,null,null,null,null,"Tipo de entidad"]
[null,null,null,null,null,null,null,null,null,null,null,null,"Nombre de entidad aliada de operar"]
[]
[]
[]
[]
[null,null,null,null,null,null,null,null,null,null,null,"Nombre del programa"]
[null,null,null,null,null,"Descripción"]
[]
[]
[]
[null,null,null,null,null,null,null,null,null,null,null,"Tipo de acceso al programa"]
[null,null,null,null,null,null,null,null,null,null,null,"Modo de atención"]
[null,null,null,null,null,null,null,null,null,null,null,"Beneficios o incentivos"]
[null,null,null,null,null,null,null,null,null,null,null,"Contrapartida del participante"]
[null,null,null,null,null,null,null,null,null,null,null,"Cobertura departamental"]
[null,null,null,null,null,null,null,null,null,null,null,"Cobertura municipal"]
[null,null,null,null,null,null,null,null,null,null,null,"Cupos disponibles para Mi Familia"]
[null,null,null,null,null,null,null,null,null,null,null,"Nombre de la persona de contacto"]
[null,null,null,null,null,null,null,null,null,null,null,"Teléfono de la persona de contacto"]
[null,null,null,null,null,null,null,null,null,null,null,"Página web del programa"]
[]
[]
[]
[]
[null,null,null,null,null,null,null,null,null,null,null,"Estado de la oferta"]
[null,null,null,null,null,null,null,null,null,null,null,"Número de veces que se oferta al año"]
[]
[null,null,null,null,null,null,null,null,null,null,null,null,"Según el número de aperturas del programa en el año, asocie a cada apertura la fecha de inicio y fin"]
[null,null,null,null,null,null,null,null,null,null,null,"Apertura del año",{"$f":"IF(OR($M37=\"\",$M37=\"No aplica\"),\"\",IF($M37>1,1,IF($M37=1,1,\".\")))","v":""},null,null,{"$f":"IF(OR($M37=\"\",$M37=\"No aplica\"),\"\",IF($M37>2,2,IF($M37=2,2,\"  \")))","v":""},null,null,{"$f":"IF(OR($M37=\"\",$M37=\"No aplica\"),\"\",IF($M37>3,3,IF($M37=3,3,\"  \")))","v":""},null,null,{"$f":"IF(OR($M37=\"\",$M37=\"No aplica\"),\"\",IF($M37>4,4,IF($M37=4,4,\"  \")))","v":""},null,null,{"$f":"IF(OR($M37=\"\",$M37=\"No aplica\"),\"\",IF($M37>5,5,IF($M37=5,5,\"  \")))","v":""},null,null,{"$f":"IF(OR($M37=\"\",$M37=\"No aplica\"),\"\",IF($M37>6,6,IF($M37=6,6,\"  \")))","v":""},null,null,{"$f":"IF(OR($M37=\"\",$M37=\"No aplica\"),\"\",IF($M37>7,7,IF($M37=7,7,\"  \")))","v":""}]
[null,null,null,null,null,null,null,null,null,null,null,"Fecha de inicio"]
[null,null,null,null,null,null,null,null,null,null,null,"Fecha de finalización"]
[]
[null,null,null,null,null,null,null,null,null,null,null,"Apertura del año",{"$f":"IF(OR($M37=\"\",$M37=\"No aplica\"),\"\",IF($M37>8,8,IF($M37=8,8,\"  \")))","v":""},null,null,{"$f":"IF(OR($M37=\"\",$M37=\"No aplica\"),\"\",IF($M37>9,9,IF($M37=9,9,\"  \")))","v":""},null,null,{"$f":"IF(OR($M37=\"\",$M37=\"No aplica\"),\"\",IF($M37>10,10,IF($M37=10,10,\"  \")))","v":""},null,null,{"$f":"IF(OR($M37=\"\",$M37=\"No aplica\"),\"\",IF($M37>11,11,IF($M37=11,11,\"  \")))","v":""},null,null,{"$f":"IF(OR($M37=\"\",$M37=\"No aplica\"),\"\",IF($M37>12,12,IF($M37=12,12,\"  \")))","v":""}]
[null,null,null,null,null,null,null,null,null,null,null,"Fecha de inicio"]
[null,null,null,null,null,null,null,null,null,null,null,"Fecha de finalización"]
[]
[null,null,null,null,null,null,null,null,null,null,null,"Observaciones"]
[]
[]
[]
[null,null,null,null,null,null,null,null,null,null,null,null,null,null,"Derecho en el que se enmarca el programa"]
[null,null,null,null,null,null,null,null,null,null,null,null,null,null,"Dimensión en la que se enmarca el programa"]
[null,null,null,null,null,null,null,null,null,null,null,null,null,null,"Principal bien o servicio que presta el programa"]
[]
[null,null,null,null,"Requisitos de entrada",null,null,null,null,null,"Criterio",null,null,null,"¿Existe?",null,"Descripción",null,null,null,null,null,"Criterio",null,null,null,"¿Existe?",null,"Descripción"]
[null,null,null,null,null,null,null,null,null,null,"Edad",null,null,null,null,null,null,null,null,null,null,null,"Víctimas"]
[null,null,null,null,null,null,null,null,null,null,"Puntaje SISBEN",null,null,null,null,null,null,null,null,null,null,null,"Reincorporados"]
[null,null,null,null,null,null,null,null,null,null,"Nivel Escolaridad",null,null,null,null,null,null,null,null,null,null,null,"Pueblos étnicos"]
[null,null,null,null,null,null,null,null,null,null,"Género",null,null,null,null,null,null,null,null,null,null,null,"Otros"]
[]
[null,null,null,null,"Variables con los que se prioriza el acceso a la oferta",null,null,null,null,null,"Criterio",null,null,null,"¿Existe?",null,null,null,"Criterio",null,null,null,"¿Existe?"]
[null,null,null,null,null,null,null,null,null,null,"Edad",null,null,null,null,null,null,null,"Reincorporados"]
[null,null,null,null,null,null,null,null,null,null,"Puntaje SISBEN",null,null,null,null,null,null,null,"Pueblos étnicos"]
[null,null,null,null,null,null,null,null,null,null,"Nivel Escolaridad",null,null,null,null,null,null,null,"Unidos"]
[null,null,null,null,null,null,null,null,null,null,"Género",null,null,null,null,null,null,null,"ICBF"]
[null,null,null,null,null,null,null,null,null,null,"Víctimas",null,null,null,null,null,null,null,"Otros"]

{"sheet":"Focalización","index":2,"n_rows":203,"n_cols":8,"rows_kept":203,"cut":false,"hidden":true,"merged":[]}
[]
[null,"Cod_Dp","Departamento","Cod_Mpio","Municipio",null,null,"Departamento"]
[null,5,"Antioquia",5001,"Medellin",null,null,"Antioquia"]
[null,5,"Antioquia",5030,"Amaga",null,null,"Amazonas"]
[null,5,"Antioquia",5034,"Andes",null,null,"Arauca"]
[null,5,"Antioquia",5079,"Barbosa",null,null,"Atlantico"]
[null,5,"Antioquia",5088,"Bello",null,null,"Bogota"]
[null,5,"Antioquia",5101,"Ciudad Bolívar",null,null,"Bolivar"]
[null,5,"Antioquia",5129,"Caldas",null,null,"Boyaca"]
[null,5,"Antioquia",5154,"Caucasia",null,null,"Caldas"]
[null,5,"Antioquia",5212,"Copacabana",null,null,"Caqueta"]
[null,5,"Antioquia",5308,"Girardota",null,null,"Casanare"]
[null,5,"Antioquia",5360,"Itagui",null,null,"Cauca"]
[null,5,"Antioquia",5380,"La Estrella",null,null,"Cesar"]
[null,5,"Antioquia",5579,"Puerto Berrio",null,null,"Choco"]
[null,5,"Antioquia",5615,"Rionegro",null,null,"Cordoba"]
[null,5,"Antioquia",5631,"Sabaneta",null,null,"Cundinamarca"]
[null,5,"Antioquia",5697,"El Santuario",null,null,"Guainia"]
[null,5,"Antioquia",5887,"Yarumal",null,null,"Guaviare"]
[null,8,"Atlantico",8001,"Barranquilla",null,null,"Huila"]
[null,8,"Atlantico",8078,"Baranoa",null,null,"La_Guajira"]
[null,8,"Atlantico",8137,"Campo De La Cruz",null,null,"Magdalena"]
[null,8,"Atlantico",8296,"Galapa",null,null,"Meta"]
[null,8,"Atlantico",8421,"Luruaco",null,null,"Nariño"]
[null,8,"Atlantico",8433,"Malambo",null,null,"Norte_De_Santander"]
[null,8,"Atlantico",8520,"Palmar De Varela",null,null,"Putumayo"]
[null,8,"Atlantico",8558,"Polonuevo",null,null,"Quindio"]
[null,8,"Atlantico",8606,"Repelon",null,null,"Risaralda"]
[null,8,"Atlantico",8634,"Sabanagrande",null,null,"San_Andres"]
[null,8,"Atlantico",8638,"Sabanalarga",null,null,"Santander"]
[null,8,"Atlantico",8685,"Santo Tomas",null,null,"Sucre"]
[null,8,"Atlantico",8758,"Soledad",null,null,"Tolima"]
[null,8,"Atlantico",8770,"Suan",null,null,"Valle_Del_Cauca"]
[null,11,"Bogota",11001,"Bogota DC",null,null,"Vaupes"]
[null,13,"Bolivar",13001,"Cartagena",null,null,"Vichada"]
[null,13,"Bolivar",13052,"Arjona"]
[null,13,"Bolivar",13244,"El Carmen De Bolivar"]
[null,13,"Bolivar",13430,"Magangue"]
[null,13,"Bolivar",13433,"Mahates"]
[null,13,"Bolivar",13442,"Maria La Baja"]
[null,13,"Bolivar",13468,"Mompos"]
[null,13,"Bolivar",13744,"Simiti"]
[null,13,"Bolivar",13836,"Turbaco"]
[null,15,"Boyaca",15001,"Tunja"]
[null,15,"Boyaca",15176,"Chiquinquira"]
[null,15,"Boyaca",15238,"Duitama"]
[null,15,"Boyaca",15299,"Garagoa"]
[null,15,"Boyaca",15469,"Moniquira"]
[null,15,"Boyaca",15572,"Puerto Boyaca"]
[null,15,"Boyaca",15759,"Sogamoso"]
[null,17,"Caldas",17001,"Manizales"]
[null,17,"Caldas",17174,"Chinchina"]
[null,17,"Caldas",17380,"La Dorada"]
[null,17,"Caldas",17433,"Manzanares"]
[null,17,"Caldas",17614,"Riosucio"]
[null,17,"Caldas",17777,"Supia"]
[null,17,"Caldas",17873,"Villamaria"]
[null,18,"Caqueta",18001,"Florencia"]
[null,18,"Caqueta",18247,"El Doncello"]
[null,18,"Caqueta",18753,"San Vicente Del Caguan"]
[null,19,"Cauca",19001,"Popayan"]
[null,19,"Cauca",19110,"Buenos Aires"]
[null,19,"Cauca",19137,"Caldono"]
[null,19,"Cauca",19212,"Corinto"]
[null,19,"Cauca",19290,"Florencia"]
[null,19,"Cauca",19300,"Guachene"]
[null,19,"Cauca",19318,"Guapi"]
[null,19,"Cauca",19418,"Lopez De Micay"]
[null,19,"Cauca",19455,"Miranda"]
[null,19,"Cauca",19513,"Padilla"]
[null,19,"Cauca",19548,"Piendamo"]
[null,19,"Cauca",19573,"Puerto Tejada"]
[null,19,"Cauca",19622,"Rosas"]
[null,19,"Cauca",19698,"Santander De Quilichao"]
[null,19,"Cauca",19807,"Timbio"]
[null,19,"Cauca",19809,"Timbiqui"]
[null,19,"Cauca",19845,"Villa Rica"]
[null,20,"Cesar",20001,"Valledupar"]
[null,20,"Cesar",20013,"Agustin Codazzi"]
[null,23,"Cordoba",23001,"Monteria"]
[null,23,"Cordoba",23162,"Cerete"]
[null,23,"Cordoba",23182,"Chinu"]
[null,23,"Cordoba",23417,"Lorica"]
[null,23,"Cordoba",23466,"Montelibano"]
[null,23,"Cordoba",23807,"Tierralta"]
[null,23,"Cordoba",23855,"Valencia"]
[null,25,"Cundinamarca",25175,"Chia"]
[null,25,"Cundinamarca",25183,"Choconta"]
[null,25,"Cundinamarca",25269,"Facatativa"]
[null,25,"Cundinamarca",25286,"Funza"]
[null,25,"Cundinamarca",25290,"Fusagasuga"]
[null,25,"Cundinamarca",25307,"Girardot"]
[null,25,"Cundinamarca",25430,"Madrid"]
[null,25,"Cundinamarca",25754,"Soacha"]
[null,25,"Cundinamarca",25843,"Ubate"]
[null,25,"Cundinamarca",25875,"Villeta"]
[null,25,"Cundinamarca",25899,"Zipaquira"]
[null,27,"Choco",27001,"Quibdo"]
[null,27,"Choco",27006,"Acandi"]
[null,27,"Choco",27810,"Union Panamericana"]
[null,41,"Huila",41001,"Neiva"]
[null,41,"Huila",41298,"Garzon"]
[null,41,"Huila",41396,"La Plata"]
[null,41,"Huila",41551,"Pitalito"]
[null,44,"La Guajira",44001,"Riohacha"]
[null,44,"La Guajira",44078,"Barrancas"]
[null,44,"La Guajira",44090,"Dibulla"]
[null,44,"La Guajira",44279,"Fonseca"]
[null,44,"La Guajira",44430,"Maicao"]
[null,44,"La Guajira",44874,"Villanueva"]
[null,47,"Magdalena",47001,"Santa Marta"]
[null,47,"Magdalena",47053,"Aracataca"]
[null,47,"Magdalena",47189,"Cienaga"]
[null,47,"Magdalena",47288,"Fundacion"]
[null,47,"Magdalena",47745,"Sitionuevo"]
[null,50,"Meta",50001,"Villavicencio"]
[null,50,"Meta",50006,"Acacias"]
[null,50,"Meta",50313,"Granada"]
[null,50,"Meta",50606,"Restrepo"]
[null,52,"Nariño",52001,"Pasto"]
[null,52,"Nariño",52079,"Barbacoas"]
[null,52,"Nariño",52240,"Chachagui"]
[null,52,"Nariño",52356,"Ipiales"]
[null,52,"Nariño",52399,"La Union"]
[null,52,"Nariño",52612,"Ricaurte"]
[null,52,"Nariño",52678,"Samaniego"]
[null,52,"Nariño",52683,"Sandona"]
[null,52,"Nariño",52693,"San Pablo"]
[null,52,"Nariño",52835,"Tumaco"]
[null,52,"Nariño",52838,"Tuquerres"]
[null,54,"Norte De Santander",54001,"Cucuta"]
[null,54,"Norte De Santander",54250,"El Tarra"]
[null,54,"Norte De Santander",54405,"Los Patios"]
[null,54,"Norte De Santander",54498,"Ocaña"]
[null,54,"Norte De Santander",54553,"Puerto Santander"]
[null,54,"Norte De Santander",54800,"Teorama"]
[null,54,"Norte De Santander",54810,"Tibu"]
[null,54,"Norte De Santander",54874,"Villa Del Rosario"]
[null,63,"Quindio",63001,"Armenia"]
[null,63,"Quindio",63130,"Calarca"]
[null,63,"Quindio",63401,"La Tebaida"]
[null,66,"Risaralda",66001,"Pereira"]
[null,66,"Risaralda",66088,"Belen De Umbria"]
[null,66,"Risaralda",66170,"Dosquebradas"]
[null,66,"Risaralda",66400,"La Virginia"]
[null,66,"Risaralda",66594,"Quinchia"]
[null,66,"Risaralda",66682,"Santa Rosa De Cabal"]
[null,68,"Santander",68001,"Bucaramanga"]
[null,68,"Santander",68077,"Barbosa"]
[null,68,"Santander",68079,"Barichara"]
[null,68,"Santander",68081,"Barrancabermeja"]
[null,68,"Santander",68147,"Capitanejo"]
[null,68,"Santander",68276,"Floridablanca"]
[null,68,"Santander",68307,"Giron"]
[null,68,"Santander",68406,"Lebrija"]
[null,68,"Santander",68432,"Malaga"]
[null,68,"Santander",68547,"Piedecuesta"]
[null,68,"Santander",68679,"San Gil"]
[null,68,"Santander",68755,"Socorro"]
[null,68,"Santander",68855,"Valle San Jose"]
[null,68,"Santander",68872,"Villanueva"]
[null,70,"Sucre",70001,"Sincelejo"]
[null,70,"Sucre",70110,"Buenavista"]
[null,70,"Sucre",70215,"Corozal"]
[null,70,"Sucre",70233,"El Roble"]
[null,70,"Sucre",70418,"Los Palmitos"]
[null,70,"Sucre",70670,"Sampues"]
[null,70,"Sucre",70713,"San Onofre"]
[null,70,"Sucre",70717,"San Pedro"]
[null,70,"Sucre",70823,"Tolu Viejo"]
[null,73,"Tolima",73001,"Ibague"]
[null,73,"Tolima",73168,"Chaparral"]
[null,73,"Tolima",73268,"Espinal"]
[null,73,"Tolima",73349,"Honda"]
[null,73,"Tolima",73408,"Lerida"]
[null,73,"Tolima",73449,"Melgar"]
[null,73,"Tolima",73585,"Purificacion"]
[null,76,"Valle Del Cauca",76001,"Cali"]
[null,76,"Valle Del Cauca",76109,"Buenaventura"]
[null,76,"Valle Del Cauca",76111,"Buga"]
[null,76,"Valle Del Cauca",76147,"Cartago"]
[null,76,"Valle Del Cauca",76275,"Florida"]
[null,76,"Valle Del Cauca",76364,"Jamundi"]
[null,76,"Valle Del Cauca",76520,"Palmira"]
[null,76,"Valle Del Cauca",76563,"Pradera"]
[null,76,"Valle Del Cauca",76622,"Roldanillo"]
[null,76,"Valle Del Cauca",76834,"Tulua"]
[null,76,"Valle Del Cauca",76892,"Yumbo"]
[null,81,"Arauca",81001,"Arauca"]
[null,81,"Arauca",81065,"Arauquita"]
[null,81,"Arauca",81736,"Saravena"]
[null,85,"Casanare",85001,"Yopal"]
[null,85,"Casanare",85010,"Aguazul"]
[null,86,"Putumayo",86001,"Mocoa"]
[null,86,"Putumayo",86568,"Puerto Asis"]
[null,86,"Putumayo",86571,"Puerto Guzmán"]
[null,86,"Putumayo",86749,"Sibundoy"]
[null,88,"San Andres",88001,"San Andres"]
[null,91,"Amazonas",91001,"Leticia"]
[null,94,"Guainia",94001,"Inirida"]
[null,95,"Guaviare",95001,"San Jose Del Guaviare"]
[null,97,"Vaupes",97001,"Mitu"]
[null,99,"Vichada",99001,"Puerto Carreño"]

{"sheet":"Formulario JeA","index":3,"n_rows":43,"n_cols":11,"rows_kept":43,"cut":false,"hidden":true,"merged":[[9,9,9,30],[10,9,10,30],[15,10,15,30],[16,10,19,30],[20,10,20,30],[42,10,42,30],[1,2,1,31],[2,2,4,31],[31,10,31,30],[32,10,32,30],[33,10,33,30],[34,10,34,30],[40,10,40,30],[41,10,41,30],[21,10,21,30],[22,10,22,30],[23,10,23,30],[24,10,24,30],[25,10,25,30],[26,10,26,30],[8,9,8,30]]}
[]
[null,null,"FORMULARIO DE MAPEO DE OFERTA PARA MI FAMILIA"]
[null,null,"La presente herramienta permite identificar la oferta disponible para adelantar acciones para la convergencia de oferta y gestión de redes"]
[]
[]
[]
[]
[]
[null,null,null,null,null,null,null,null,"Nombre entidad","Departamento para la Prosperidad Social"]
[null,null,null,null,null,null,null,null,"Tipo de entidad","Público"]
[null,null,null,null,null,null,null,null,"Entidad aliada de operar","SENA"]
[]
[]
[]
[]
[null,null,null,null,null,null,null,null,null,"Nombre del programa","Jóvenes en Acción"]
[null,null,null,null,null,null,null,null,null,"Descripción","Apoya a los jóvenes en condición de pobreza y vulnerabilidad, con la entrega de transferencias monetarias condicionadas –TMC-, para que puedan continuar sus estudios técnicos, tecnológicos y profesionales.​"]
[]
[]
[]
[null,null,null,null,null,null,null,null,null,"Tipo de acceso al programa","Convocatoria abierta"]
[null,null,null,null,null,null,null,null,null,"Modo de atención","presencial"]
[null,null,null,null,null,null,null,null,null,"Beneficios o incentivos","Efectivo"]
[null,null,null,null,null,null,null,null,null,"Contrapartida del participante","Tiempo"]
[null,null,null,null,null,null,null,null,null,"Cobertura territorial","Por definir"]
[null,null,null,null,null,null,null,null,null,"Datos de contacto y página web","http://www.prosperidadsocial.gov.co/que/jov/Paginas/Que-es-jovenes-en-accion.aspx"]
[null,null,null,null,null,null,null,null,null,"Cupos disponibles para Mi Familia","Por concertar"]
[]
[]
[]
[]
[null,null,null,null,null,null,null,null,null,"Estado de la oferta","Activo"]
[null,null,null,null,null,null,null,null,null,"Número de apertura en el año",4]
[null,null,null,null,null,null,null,null,null,"Fecha de inicio","2020-01-15"]
[null,null,null,null,null,null,null,null,null,"Fecha de finalización","2020-12-15"]
[]
[]
[]
[]
[]
[null,null,null,null,null,null,null,null,null,"Derechos y dimensiones","EDUCACIÓN Y CAPACITACIÓN"]
[null,null,null,null,null,null,null,null,null,"Requisitos de entrada","Jóvenes colombianos bachilleres entre 16 y 24 años de edad y que adicionalmente se encuentren registrados en por lo menos uno de los siguientes listados poblacionales:\n\nEstar en el SISBEN  III, con uno de los puntajes especificados conforme al área de residencia (desagregación geográfica), \nEstar registrado en la Red UNIDOS; ó\nEstar registrado en el Registro Único de Víctimas -RUV en condición de desplazamiento en estado \"INCLUIDO\"; ó\nEstar registrado en las listas censales de jóvenes indígenas ó\nEstar registrado en las listas censales para jóvenes con medida de adoptabilidad o responsabilidad penal del ICBF."]
[null,null,null,null,null,null,null,null,null,"Variables de focalización"]

{"sheet":"Mapa oferta","index":4,"n_rows":6,"n_cols":87,"rows_kept":6,"cut":false,"hidden":true,"merged":[[3,2,3,4],[3,5,3,16],[3,17,3,54],[3,56,3,85]]}
[]
[null,2,{"$f":"Formulario!N10","v":0},{"$f":"Formulario!N11","v":0},{"$f":"Formulario!N12","v":0},{"$f":"Formulario!M17","v":0},{"$f":"Formulario!M18","v":0},{"$f":"Formulario!M22","v":0},{"$f":"Formulario!M23","v":0},{"$f":"Formulario!M24","v":0},{"$f":"Formulario!M25","v":0},{"$f":"Formulario!M26","v":0},{"$f":"Formulario!M27","v":0},{"$f":"Formulario!M28","v":0},{"$f":"Formulario!M29","v":0},{"$f":"Formulario!M30","v":0},{"$f":"Formulario!M31","v":0},{"$f":"Formulario!M36","v":0},{"$f":"Formulario!M37","v":0},{"$f":"IF(Formulario!M40=\"\",0,Formulario!M40)","v":0},{"$f":"IF(Formulario!M40=\"\",0,IF(AND(Formulario!M40<>\"\",OR(Formulario!M41=\"\",Formulario!M41=\"  \")),\"Sin diligenciar\",Formulario!M41))","v":0},{"$f":"IF(Formulario!M40=\"\",0,IF(AND(Formulario!M40<>\"\",OR(Formulario!M42=\"\",Formulario!M42=\"  \")),\"Sin diligenciar\",Formulario!M42))","v":0},{"$f":"IF(OR(Formulario!P40=\"\",Formulario!P40=\"  \"),0,Formulario!P40)","v":0},{"$f":"IF(OR(Formulario!P40=\"\",Formulario!P40=\"  \"),0,IF(AND(Formulario!P40<>\"\",OR(Formulario!P41=\"\",Formulario!P41=\"  \")),\"Sin diligenciar\",Formulario!P41))","v":0},{"$f":"IF(OR(Formulario!P40=\"\",Formulario!P40=\"  \"),0,IF(AND(Formulario!P40<>\"\",OR(Formulario!P42=\"\",Formulario!P42=\"  \")),\"Sin diligenciar\",Formulario!P42))","v":0},{"$f":"IF(OR(Formulario!S40=\"\",Formulario!S40=\"  \"),0,Formulario!S40)","v":0},{"$f":"IF(OR(Formulario!S40=\"\",Formulario!S40=\"  \"),0,IF(AND(Formulario!S40<>\"\",OR(Formulario!S41=\"\",Formulario!S41=\"  \")),\"Sin diligenciar\",Formulario!S41))","v":0},{"$f":"IF(OR(Formulario!S40=\"\",Formulario!S40=\"  \"),0,IF(AND(Formulario!S40<>\"\",OR(Formulario!S42=\"\",Formulario!S42=\"  \")),\"Sin diligenciar\",Formulario!S42))","v":0},{"$f":"IF(OR(Formulario!V40=\"\",Formulario!V40=\"  \"),0,Formulario!V40)","v":0},{"$f":"IF(OR(Formulario!V40=\"\",Formulario!V40=\"  \"),0,IF(AND(Formulario!V40<>\"\",OR(Formulario!V41=\"\",Formulario!V41=\"  \")),\"Sin diligenciar\",Formulario!V41))","v":0},{"$f":"IF(OR(Formulario!V40=\"\",Formulario!V40=\"  \"),0,IF(AND(Formulario!V40<>\"\",OR(Formulario!V42=\"\",Formulario!V42=\"  \")),\"Sin diligenciar\",Formulario!V42))","v":0},{"$f":"IF(OR(Formulario!Y40=\"\",Formulario!Y40=\"  \"),0,Formulario!Y40)","v":0},{"$f":"IF(OR(Formulario!Y40=\"\",Formulario!Y40=\"  \"),0,IF(AND(Formulario!Y40<>\"\",OR(Formulario!Y41=\"\",Formulario!Y41=\"  \")),\"Sin diligenciar\",Formulario!Y41))","v":0},{"$f":"IF(OR(Formulario!Y40=\"\",Formulario!Y40=\"  \"),0,IF(AND(Formulario!Y40<>\"\",OR(Formulario!Y42=\"\",Formulario!Y42=\"  \")),\"Sin diligenciar\",Formulario!Y42))","v":0},{"$f":"IF(OR(Formulario!AB40=\"\",Formulario!AB40=\"  \"),0,Formulario!AB40)","v":0},{"$f":"IF(OR(Formulario!AB40=\"\",Formulario!AB40=\"  \"),0,IF(AND(Formulario!AB40<>\"\",OR(Formulario!AB41=\"\",Formulario!AB41=\"  \")),\"Sin diligenciar\",Formulario!AB41))","v":0},{"$f":"IF(OR(Formulario!AB40=\"\",Formulario!AB40=\"  \"),0,IF(AND(Formulario!AB40<>\"\",OR(Formulario!AB42=\"\",Formulario!AB42=\"  \")),\"Sin diligenciar\",Formulario!AB42))","v":0},{"$f":"IF(OR(Formulario!AE40=\"\",Formulario!AE40=\"  \"),0,Formulario!AE40)","v":0},{"$f":"IF(OR(Formulario!AE40=\"\",Formulario!AE40=\"  \"),0,IF(AND(Formulario!AE40<>\"\",OR(Formulario!AE41=\"\",Formulario!AE41=\"  \")),\"Sin diligenciar\",Formulario!AE41))","v":0},{"$f":"IF(OR(Formulario!AE40=\"\",Formulario!AE40=\"  \"),0,IF(AND(Formulario!AE40<>\"\",OR(Formulario!AE42=\"\",Formulario!AE42=\"  \")),\"Sin diligenciar\",Formulario!AE42))","v":0},{"$f":"IF(OR(Formulario!AH40=\"\",Formulario!AH40=\"  \"),0,Formulario!AH40)","v":0},{"$f":"IF(OR(Formulario!AH40=\"\",Formulario!AH40=\"  \"),0,IF(AND(Formulario!AH40<>\"\",OR(Formulario!AH41=\"\",Formulario!AH41=\"  \")),\"Sin diligenciar\",Formulario!AH41))","v":0},{"$f":"IF(OR(Formulario!AH40=\"\",Formulario!AH40=\"  \"),0,IF(AND(Formulario!AH40<>\"\",OR(Formulario!AH42=\"\",Formulario!AH42=\"  \")),\"Sin diligenciar\",Formulario!AH42))","v":0},{"$f":"IF(OR(Formulario!AJ40=\"\",Formulario!AJ40=\"  \"),0,Formulario!AJ40)","v":0},{"$f":"IF(OR(Formulario!AJ40=\"\",Formulario!AJ40=\"  \"),0,IF(AND(Formulario!AJ40<>\"\",OR(Formulario!AJ41=\"\",Formulario!AJ41=\"  \")),\"Sin diligenciar\",Formulario!AJ41))","v":0},{"$f":"IF(OR(Formulario!AJ40=\"\",Formulario!AJ40=\"  \"),0,IF(AND(Formulario!AJ40<>\"\",OR(Formulario!AJ42=\"\",Formulario!AJ42=\"  \")),\"Sin diligenciar\",Formulario!AJ42))","v":0},{"$f":"IF(OR(Formulario!AM40=\"\",Formulario!AM40=\"  \"),0,Formulario!AM40)","v":0},{"$f":"IF(OR(Formulario!AM40=\"\",Formulario!AM40=\"  \"),0,IF(AND(Formulario!AM40<>\"\",OR(Formulario!AM41=\"\",Formulario!AM41=\"  \")),\"Sin diligenciar\",Formulario!AM41))","v":0},{"$f":"IF(OR(Formulario!AM40=\"\",Formulario!AM40=\"  \"),0,IF(AND(Formulario!AM40<>\"\",OR(Formulario!AM42=\"\",Formulario!AM42=\"  \")),\"Sin diligenciar\",Formulario!AM42))","v":0},{"$f":"IF(OR(Formulario!AP40=\"\",Formulario!AP40=\"  \"),0,Formulario!AP40)","v":0},{"$f":"IF(OR(Formulario!AP40=\"\",Formulario!AP40=\"  \"),0,IF(AND(Formulario!AP40<>\"\",OR(Formulario!AP41=\"\",Formulario!AP41=\"  \")),\"Sin diligenciar\",Formulario!AP41))","v":0},{"$f":"IF(OR(Formulario!AP40=\"\",Formulario!AP40=\"  \"),0,IF(AND(Formulario!AP40<>\"\",OR(Formulario!AP42=\"\",Formulario!AP42=\"  \")),\"Sin diligenciar\",Formulario!AP42))","v":0},{"$f":"IF(OR(Formulario!AS40=\"\",Formulario!AS40=\"  \"),0,Formulario!AS40)","v":0},{"$f":"IF(OR(Formulario!AS40=\"\",Formulario!AS40=\"  \"),0,IF(AND(Formulario!AS40<>\"\",OR(Formulario!AS41=\"\",Formulario!AS41=\"  \")),\"Sin diligenciar\",Formulario!AS41))","v":0},{"$f":"IF(OR(Formulario!AS40=\"\",Formulario!AS40=\"  \"),0,IF(AND(Formulario!AS40<>\"\",OR(Formulario!AS42=\"\",Formulario!AS42=\"  \")),\"Sin diligenciar\",Formulario!AS42))","v":0},{"$f":"Formulario!M48","v":0},{"$f":"Formulario!P52","v":0},{"$f":"Formulario!P53","v":0},{"$f":"Formulario!P54","v":0},{"$f":"Formulario!O57","v":0},{"$f":"Formulario!Q57","v":0},{"$f":"Formulario!O58","v":0},{"$f":"Formulario!Q58","v":0},{"$f":"Formulario!O59","v":0},{"$f":"Formulario!Q59","v":0},{"$f":"Formulario!O60","v":0},{"$f":"Formulario!Q60","v":0},{"$f":"Formulario!AA57","v":0},{"$f":"Formulario!AC57","v":0},{"$f":"Formulario!AA58","v":0},{"$f":"Formulario!AC58","v":0},{"$f":"Formulario!AA59","v":0},{"$f":"Formulario!AC59","v":0},{"$f":"Formulario!AA60","v":0},{"$f":"Formulario!AC60","v":0},{"$f":"IF(SUM(BH2:BW2)<>0,0,CONCATENATE(IF(BH2=\"SÍ\",CONCATENATE(BY5,\" -> \",BI2,\", \"),\"\"),IF(BJ2=\"SÍ\",CONCATENATE(BZ5,\" -> \",BK2,\", \"),\"\"),IF(BL2=\"SÍ\",CONCATENATE(CA5,\" -> \",BM2,\", \"),\"\"),IF(BN2=\"SÍ\",CONCATENATE(CB5,\" -> \",BO2,\", \"),\"\"),IF(BP2=\"SÍ\",CONCATENATE(CC5,\" -> \",BQ2,\", \"),\"\"),IF(BR2=\"SÍ\",CONCATENATE(CD5,\" -> \",BS2,\", \"),\"\"),IF(BT2=\"SÍ\",CONCATENATE(CE5,\" -> \",BU2,\", \"),\"\"),IF(BV2=\"SÍ\",CONCATENATE(CH5,\" -> \",BW2,\", \"),\"\")))","v":""},{"$f":"Formulario!O63","v":0},{"$f":"Formulario!O64","v":0},{"$f":"Formulario!O65","v":0},{"$f":"Formulario!O66","v":0},{"$f":"Formulario!O67","v":0},{"$f":"Formulario!W63","v":0},{"$f":"Formulario!W64","v":0},{"$f":"Formulario!W65","v":0},{"$f":"Formulario!W66","v":0},{"$f":"Formulario!W67","v":0},{"$f":"(47-SUM(COUNTIF(B2:S2,0),COUNTIF(BE2:CH2,\"No aplica\")))/47","v":0.63829787234042556}]
[]
[null,"Serie","Información entidad responsable",null,null,"Información básica del programa",null,null,null,null,null,null,null,null,null,null,null,"Descripción de la oferta",null,null,null,null,null,null,null,null,null,null,null,null,null,null,null,null,null,null,null,null,null,null,null,null,null,null,null,null,null,null,null,null,null,null,null,null,null,null,"Criterios de priorización"]
[null,"Serie","Nombre entidad","Tipo de entidad","Entidad aliada de operar","Nombre del programa","Descripción","Tipo de acceso al programa","Modo de atención","Beneficios o incentivos","Contrapartida del participante","Cobertura departamental","Cobertura municipal","Cupos disponibles para Mi Familia","Nombre de la persona de contacto","Teléfono de la persona de contacto","Página web del programa","Estado de la oferta","Número de apertura en el año","Apertura_1","Fecha inicio 1","Fecha fin 1","Apertura_2","Fecha inicio 2","Fecha fin 2","Apertura_3","Fecha inicio 3","Fecha fin 3","Apertura_4","Fecha inicio 4","Fecha fin 4","Apertura_5","Fecha inicio 5","Fecha fin 5","Apertura_6","Fecha inicio 6","Fecha fin 6","Apertura_7","Fecha inicio 7","Fecha fin 7","Apertura_8","Fecha inicio 8","Fecha fin 8","Apertura_9","Fecha inicio 9","Fecha fin 9","Apertura_10","Fecha inicio 10","Fecha fin 10","Apertura_11","Fecha inicio 11","Fecha fin 11","Apertura_12","Fecha inicio 12","Fecha fin 12","Observaciones","Derecho en el que se enmarca el programa","Dimensión en la que se enmarca el programa","Principal bien o servicio que presta el programa","Edad - ¿existe?","Edad - Descripción","Puntaje SISBEN - ¿existe?","Puntaje SISBEN - Descripción","Nivel Escolaridad - ¿existe?","Nivel Escolaridad - Descripción","Género - ¿existe?","Género - Descripción","Víctimas - ¿existe?","Víctimas - Descripción","Reincorporados - ¿existe?","Reincorporados - Descripción","Pueblos étnicos - ¿existe?","Pueblos étnicos - Descripción","Otros - ¿existe?","Otros - Descripción","Descripción requisitos","Edad","Puntaje SISBEN","Nivel Escolaridad","Género","Víctimas","Reincorporados","Pueblos étnicos","Unidos","ICBF","Otros","Calidad de información sobre el programa"]
[null,"Serie","Nombre entidad","Tipo de entidad","Entidad aliada de operar","Nombre del programa","Descripción","Tipo de acceso al programa","Modo de atención","Beneficios o incentivos","Contrapartida del participante","Cobertura departamental","Cobertura municipal","Cupos disponibles para Mi Familia","Nombre de la persona de contacto","Teléfono de la persona de contacto","Página web del programa","Estado de la oferta","Número de apertura en el año","Apertura_1","Fecha inicio 1","Fecha fin 1","Apertura_2","Fecha inicio 2","Fecha fin 2","Apertura_3","Fecha inicio 3","Fecha fin 3","Apertura_4","Fecha inicio 4","Fecha fin 4","Apertura_5","Fecha inicio 5","Fecha fin 5","Apertura_6","Fecha inicio 6","Fecha fin 6","Apertura_7","Fecha inicio 7","Fecha fin 7","Apertura_8","Fecha inicio 8","Fecha fin 8","Apertura_9","Fecha inicio 9","Fecha fin 9","Apertura_10","Fecha inicio 10","Fecha fin 10","Apertura_11","Fecha inicio 11","Fecha fin 11","Apertura_12","Fecha inicio 12","Fecha fin 12","Observaciones","Derecho en el que se enmarca el programa","Dimensión en la que se enmarca el programa","Principal bien o servicio que presta el programa","Edad - ¿existe?","Edad - Descripción","Puntaje SISBEN - ¿existe?","Puntaje SISBEN - Descripción","Nivel Escolaridad - ¿existe?","Nivel Escolaridad - Descripción","Género - ¿existe?","Género - Descripción","Víctimas - ¿existe?","Víctimas - Descripción","Reincorporados - ¿existe?","Reincorporados - Descripción","Pueblos étnicos - ¿existe?","Pueblos étnicos - Descripción","Otros - ¿existe?","Otros - Descripción","Descripción requisitos","Edad","Puntaje SISBEN","Nivel Escolaridad","Género","Víctimas","Reincorporados","Pueblos étnicos","Unidos","ICBF","Otros","Calidad de información sobre el programa"]

{"sheet":"Control_info","index":5,"n_rows":7,"n_cols":5,"rows_kept":7,"cut":false,"hidden":false,"merged":[]}
[]
[]
[null,"Relación de programas cargados en la herramienta y su calidad de información"]
[]
[null,"Serie","Nombre entidad","Nombre del programa","Calidad de información sobre el programa"]
[null,"(en blanco)","(en blanco)","(en blanco)","(en blanco)"]
[null,"Total general"]

{"sheet":"Guía de oferta","index":6,"n_rows":34,"n_cols":6,"rows_kept":34,"cut":false,"hidden":false,"merged":[[21,1,21,3],[1,1,1,12],[3,1,3,12],[13,1,13,12],[5,1,5,3],[5,5,5,12]]}
[]
[null,"GUÍA DE OFERTA PARA EL PROGRAMA MI FAMILIA"]
[]
[null,"La presente herramienta pretende facilitar la busqueda de oferta registrada en la herramienta, con el fin de prestar el servicio de convergencia de oferta a las familias participantes del programa, según sus características o necesidades y disponibilidad de oferta pertinente."]
[]
[null,"Criterios de cobertura territorial",null,null,null,"Ámbitos de política pública"]
[]
[]
[]
[]
[]
[]
[]
[null,"Requisitos de entrada al programa"]
[]
[]
[]
[]
[]
[]
[]
[null,"Calidad de la información y la oferta"]
[]
[]
[]
[]
[]
[]
[]
[]
[]
[null,"Serie","Nombre entidad","Nombre del programa","Descripción requisitos","Cuenta de Estado de la oferta"]
[null,"(en blanco)","(en blanco)","(en blanco)","(en blanco)",0]
[null,"Total general",null,null,null,0]

{"sheet":"Guia","index":7,"n_rows":26,"n_cols":25,"rows_kept":26,"cut":false,"hidden":true,"merged":[[2,1,2,30],[3,1,5,30],[10,3,10,7],[11,3,11,7],[12,3,12,7],[10,19,10,25],[11,19,11,25],[12,19,12,25],[9,19,9,25],[9,3,9,7],[10,11,10,14],[11,11,11,14],[12,11,12,14],[14,3,14,7],[15,3,15,7],[14,11,14,14],[13,3,13,7],[9,11,9,14],[13,11,13,14],[13,19,13,25],[14,19,14,25],[15,19,15,25],[16,19,16,25],[17,19,17,25],[26,4,26,7],[26,8,26,12],[26,13,26,23],[26,24,26,28],[15,11,15,14],[25,4,25,7],[25,8,25,12],[25,13,25,23],[25,24,25,28],[18,19,18,25],[19,19,19,25],[16,11,16,14],[17,11,17,14],[27,4,27,7],[27,8,27,12],[27,13,27,23],[27,24,27,28],[28,4,28,7],[28,8,28,12],[28,13,28,23],[28,24,28,28],[29,4,29,7],[29,8,29,12],[29,13,29,23],[29,24,29,28],[32,4,32,7],[32,8,32,12],[32,13,32,23],[32,24,32,28],[30,4,30,7],[30,8,30,12],[30,13,30,23],[30,24,30,28],[31,4,31,7],[31,8,31,12],[31,13,31,23],[31,24,31,28]]}
[]
[]
[null,"GUÍA DE OFERTA PARA MI FAMILIA"]
[null,"La presente herramienta permite priorizar ofrtas pertienente para las caracteristicas y necesidades de la familia"]
[]
[]
[]
[]
[]
[null,null,null,"Derechos y dimensiones",null,null,null,null,null,null,null,"Requisitos de entrada",null,null,null,null,null,null,null,"Variables de focalización"]
[null,null,null,"SALUD",null,null,null,null,null,null,null,"Edad",null,null,null,null,null,null,null,"Edad"]
[null,null,null,"EDUCACIÓN Y CAPACITACIÓN",null,null,null,null,null,null,null,"Puntaje SISBEN",null,null,null,null,null,null,null,"Puntaje SISBEN"]
[null,null,null,"HABITABILIDAD ",null,null,null,null,null,null,null,"Nivel Escolaridad",null,null,null,null,null,null,null,"Nivel Escolaridad"]
[null,null,null,"PREVENCIÓN",null,null,null,null,null,null,null,"Género",null,null,null,null,null,null,null,"Género"]
[null,null,null,"INGRESOS Y TRABAJO",null,null,null,null,null,null,null,"Víctimas",null,null,null,null,null,null,null,"Víctimas (desplazados, otras víctimas)"]
[null,null,null,"USO DEL TIEMPO LIBRE ",null,null,null,null,null,null,null,"Reincorporados",null,null,null,null,null,null,null,"Reincorporados"]
[null,null,null,null,null,null,null,null,null,null,null,"Puble étnicos",null,null,null,null,null,null,null,"Puble étnicos (afros, indigenas, RROM, ETC)"]
[null,null,null,null,null,null,null,null,null,null,null,"Otros abiertos",null,null,null,null,null,null,null,"Unidos"]
[null,null,null,null,null,null,null,null,null,null,null,null,null,null,null,null,null,null,null,"ICBF"]
[null,null,null,null,null,null,null,null,null,null,null,null,null,null,null,null,null,null,null,"Otros"]
[]
[]
[]
[]
[]
[null,null,null,null,"Nombre entidad",null,null,null,"Nombre del programa",null,null,null,null,"Descripción",null,null,null,null,null,null,null,null,null,null,"Beneficios o incentivos"]

{"sheet":"Guia JeA","index":8,"n_rows":24,"n_cols":25,"rows_kept":24,"cut":false,"hidden":true,"merged":[[9,3,9,7],[9,11,9,14],[9,19,9,25],[1,1,1,30],[2,1,4,30],[8,3,8,7],[8,11,8,14],[8,19,8,25],[10,3,10,7],[10,11,10,14],[10,19,10,25],[11,3,11,7],[11,11,11,14],[11,19,11,25],[16,11,16,14],[16,19,16,25],[12,3,12,7],[12,11,12,14],[12,19,12,25],[13,3,13,7],[13,11,13,14],[13,19,13,25],[14,3,14,7],[14,11,14,14],[14,19,14,25],[15,11,15,14],[15,19,15,25],[17,19,17,25],[18,19,18,25],[22,4,22,7],[22,8,22,12],[22,13,22,23],[22,24,22,28],[23,4,23,7],[23,8,23,12],[23,13,23,23],[23,24,23,28],[24,4,24,7],[24,8,24,12],[24,13,24,23],[24,24,24,28],[25,4,25,7],[25,8,25,12],[25,13,25,23],[25,24,25,28],[26,4,26,7],[26,8,26,12],[26,13,26,23],[26,24,26,28],[29,4,29,7],[29,8,29,12],[29,13,29,23],[29,24,29,28],[27,4,27,7],[27,8,27,12],[27,13,27,23],[27,24,27,28],[28,4,28,7],[28,8,28,12],[28,13,28,23],[28,24,28,28]]}
[]
[null,"GUÍA DE OFERTA PARA MI FAMILIA"]
[null,"La presente herramienta permite priorizar ofrtas pertienente para las caracteristicas y necesidades de la familia"]
[]
[]
[]
[]
[]
[null,null,null,"Derechos y dimensiones",null,null,null,null,null,null,null,"Requisitos de entrada",null,null,null,null,null,null,null,"Variables de focalización"]
[null,null,null,"SALUD",null,null,null,null,null,null,null,"Edad",null,null,null,null,null,null,null,"Edad"]
[null,null,null,"EDUCACIÓN Y CAPACITACIÓN",null,null,null,null,null,null,null,"Puntaje SISBEN",null,null,null,null,null,null,null,"Puntaje SISBEN"]
[null,null,null,"HABITABILIDAD ",null,null,null,null,null,null,null,"Nivel Escolaridad",null,null,null,null,null,null,null,"Nivel Escolaridad"]
[null,null,null,"PREVENCIÓN",null,null,null,null,null,null,null,"Género",null,null,null,null,null,null,null,"Género"]
[null,null,null,"INGRESOS Y TRABAJO",null,null,null,null,null,null,null,"Víctimas",null,null,null,null,null,null,null,"Víctimas (desplazados, otras víctimas)"]
[null,null,null,"USO DEL TIEMPO LIBRE ",null,null,null,null,null,null,null,"Reincorporados",null,null,null,null,null,null,null,"Reincorporados"]
[null,null,null,null,null,null,null,null,null,null,null,"Puble étnicos",null,null,null,null,null,null,null,"Puble étnicos (afros, indigenas, RROM, ETC)"]
[null,null,null,null,null,null,null,null,null,null,null,"Otros abiertos",null,null,null,null,null,null,null,"Unidos"]
[null,null,null,null,null,null,null,null,null,null,null,null,null,null,null,null,null,null,null,"ICBF"]
[null,null,null,null,null,null,null,null,null,null,null,null,null,null,null,null,null,null,null,"Otros"]
[]
[]
[]
[null,null,null,null,"Nombre entidad",null,null,null,"Nombre del programa",null,null,null,null,"Descripción",null,null,null,null,null,null,null,null,null,null,"Beneficios o incentivos"]
[null,null,null,null,"Departamento para la Prosperidad Social",null,null,null,"Jóvenes en Acción",null,null,null,null,"Apoya a los jóvenes en condición de pobreza y vulnerabilidad, con la entrega de transferencias monetarias condicionadas –TMC-, para que puedan continuar sus estudios técnicos, tecnológicos y profesionales.​",null,null,null,null,null,null,null,null,null,null,"Efectivo"]